[Event "US Masters 2024"]
[Site "Charlotte"]
[Date "2024.11.29"]
[Round "3.1"]
[White "Paragua, Mark"]
[Black "Caruana, Fabiano"]
[Result "0-1"]
[ECO "C00"]
[WhiteElo "2446"]
[BlackElo "2805"]
[Annotator "TA"]
[PlyCount "68"]
[EventDate "2024.09.23"]
[EventType "swiss"]
[EventCountry "USA"]
[SourceTitle "playchess.com"]
[Source "ChessBase"]
[SourceQuality "1"]
[TimeControl "5400+30"]

{[%evp 9,68,0,-9,-2,-8,0,12,5,0,0,0,0,0,0,0,-10,-9,-58,-30,-100,-98,-110,-126,-233,-173,-258,-179,-154,-82,-98,-83,-132,-97,-81,-85,-89,-96,-90,-89,-93,-99,-98,-84,-94,-106,-96,-81,-112,-95,-214,-224,-361,-277,-316,-300,-327,-308,-1589,-1320,-2429,-1829]} 1. e4 {[%emt 0:09:30]} e6 {[%emt 0:00:05]} 2. d3 {[%emt 0:03:26]} d5 {[%emt 0:00:48]} 3. Qe2 {[%emt 0:00:07]} Nf6 {[%emt 0:00:14]} 4. Nf3 {[%emt 0:00:14]} Be7 {[%emt 0:01:28]} 5. g3 {[%emt 0:00:12]} O-O {[%emt 0:00:32]} 6. Bg2 {[%emt 0:00:11]} b5 {[%emt 0:02:26]} 7. O-O {[%emt 0:01:10]} c5 {[%emt 0:00:26]} 8. exd5 {[%emt 0:03:48] The position is equal.} exd5 {[%emt 0:00:09]} 9. c4 {[%emt 0:00:19]} bxc4 {[%emt 0:08:27]} 10. dxc4 {[%emt 0:00:06]} Ba6 {[%emt 0:00:10]} 11. Na3 {[%emt 0:05:46]} Nc6 {[%emt 0:01:16]} 12. Rd1 {[%emt 0:01:11]} Re8 {[%emt 0:02:47]} 13. Qc2 {[%emt 0:07:40]} (13. Nb5 $11 {is more appropriate.}) 13... d4 {[%emt 0:04:50]} 14. Nh4 {[%emt 0:06:46]} (14. Bf4 $11) 14... Bb7 $17 {[%emt 0:01:39]} 15. Bd2 {[%emt 0:07:12]} Ng4 {[%emt 0:06:10][%cal Od4d3]} 16. Nf5 {[%emt 0:04:49]} (16. Nf3 $17 {is a better defense.}) 16... Bf8 {[%emt 0:01:25] [#] ...d3 is the strong threat.} 17. h3 {[%emt 0:06:55]} (17. Rf1 $142) 17... Nge5 {[%emt 0:00:38] Hoping for ...Qc8.} 18. f4 {[%emt 0:02:06]} Ng6 {[%emt 0:03:24]} ({Black should play} 18... d3 19. Qb1 (19. Qb3 $2 Rb8 $19) 19... Rb8) 19. Qd3 {[%emt 0:02:01]} Qd7 {[%emt 0:00:50]} 20. Re1 {[%emt 0:09:12]} ({Better is} 20. Rf1) 20... Nb4 {[%emt 0:11:27]} 21. Bxb4 {[%emt 0:00:09] And now Ba5 would win.} Bxg2 {[%emt 0:00:03]} (21... cxb4 22. Bxb7 Qxb7 23. Nc2 $11) 22. Kxg2 {[%emt 0:01:30] [#] aiming for Ba5.} Qb7+ $1 {[%emt 0:00:04]} ({Don't play} 22... cxb4 $6 23. Nc2 $11) 23. Kf2 {[%emt 0:18:13]} Qxb4 {[%emt 0:00:43]} 24. Nc2 {[%emt 0:03:04]} Qb6 {[%emt 0:04:04]} ({Much less strong is} 24... Qxb2 25. Reb1 Qc3 26. Qxc3 dxc3 27. Nce3 $15) 25. b3 {[%emt 0:00:26]} Qf6 {[%emt 0:00:48]} 26. Rxe8 {[%emt 0:00:45]} Rxe8 {[%emt 0:00:04]} 27. Re1 {[%emt 0:00:04]} Re6 {[%emt 0:00:07]} 28. a3 {[%emt 0:00:34]} h5 {[%emt 0:01:33]} 29. b4 {[%emt 0:06:00]} (29. h4 $17) 29... h4 $19 {[%emt 0:48:23] Threatens to win with ...hxg3+.} 30. bxc5 {[%emt 0:00:07]} (30. Rxe6 {was worth a try.} hxg3+ (30... Qxe6 31. bxc5 Bxc5 32. Nxh4 $17) (30... fxe6 $2 31. Nxh4 Nxh4 32. gxh4 $17) 31. Nxg3 fxe6 (31... Qxe6 $2 32. Ne2 $19) 32. Qf3) 30... hxg3+ {[%emt 0:00:00]} 31. Kxg3 {[%emt 0:00:07]} Bxc5 {[%emt 0:00:00] ...Bb6 would now be deadly.} 32. Rf1 {[%emt 0:01:55]} a5 {[%emt 0:00:00]} 33. Rb1 $2 {[%emt 0:00:45]} (33. a4) 33... Bd6 {[%emt 0:00:00]} 34. Ncxd4 {[%emt 0:00:34]} Nxf4 {[%emt 0:00:00] Weighted Error Value: White=0.61/Black=0.18 (very precise) .  Mistake:       	White=8     	Black=1      Inaccurate:     	White=2     	Black=2      OK:         	White=10    	Black=11     Best:        	White=2     	Black=3      Strong:       	---       	Black=1} (34... Bxf4+ 35. Kg2 Re5 36. Rb5 $19) 0-1

[Event "US Masters 2024"]
[Site "Charlotte"]
[Date "2024.11.29"]
[Round "3.2"]
[White "Druska, Juraj"]
[Black "Oparin, Grigoriy"]
[Result "0-1"]
[ECO "B62"]
[WhiteElo "2433"]
[BlackElo "2653"]
[Annotator "TA"]
[PlyCount "86"]
[EventDate "2024.09.23"]
[EventType "swiss"]
[EventCountry "USA"]
[SourceTitle "playchess.com"]
[Source "ChessBase"]
[SourceQuality "1"]
[TimeControl "5400+30"]

{[%evp 12,86,35,8,44,20,23,31,31,38,46,43,39,19,25,30,38,41,40,20,33,49,41,39,45,32,64,29,55,41,50,32,60,-14,-16,-34,-31,-85,-76,-86,-72,-81,-74,-82,-21,-51,-66,-47,-52,-55,-45,-66,-69,-82,-80,-66,-70,-338,-340,-340,-332,-519,-521,-567,-566,-522,-522,-1118,-1021,-1107,-1070,-856,-920,-931,-888,-5775,-4960]} 1. e4 {[%emt 0:03:02]} c5 {[%emt 0:00:05]} 2. Nf3 {[%emt 0:00:10]} Nc6 {[%emt 0:00:04]} 3. d4 {[%emt 0:00:40]} cxd4 {[%emt 0:00:05]} 4. Nxd4 {[%emt 0:00:07]} Nf6 {[%emt 0:00:04]} 5. Nc3 {[%emt 0:00:11]} d6 {[%emt 0:00:02]} 6. Bg5 {[%emt 0:00:54]} e6 {[%emt 0:00:43][%cal Be7e6,Be6e5][%mdl 32]} 7. Qd3 {[%emt 0:00:44]} Bd7 {[%emt 0:00:57]} 8. Ndb5 {[%emt 0:00:22]} Nb4 $1 {[%emt 0:00:51]} 9. Qd1 {[%emt 0:00:17]} Qb8 {[%emt 0:00:52] White is slightly better.} 10. Bf4 {[%emt 0:00:16][%cal Rb5d6]} e5 {[%emt 0:00:13]} 11. Bg5 {[%emt 0:00:08]} a6 {[%emt 0:00:08]} 12. Bxf6 {[%emt 0:00:16]} gxf6 {[%emt 0:00:05]} 13. Na3 {[%emt 0:00:09]} b5 {[%emt 0:00:31] Against Nc4} 14. Nab1 {[%emt 0:00:08]} Bg7 {[%emt 0:00:09]} 15. Nd2 {[%emt 0:00:08]} (15. a3 $5 Nc6 $8 16. Nd5 $11) 15... O-O {[%emt 0:12:00]} 16. a3 {[%emt 0:02:17]} Nc6 {[%emt 0:00:09]} 17. Bd3 {[%emt 0:00:19]} Ne7 {[%emt 0:09:00]} 18. Qh5 {[%emt 0:00:08]} Qc8 {[%emt 0:05:42]} 19. h3 {[%emt 0:11:19]} f5 {[%emt 0:03:24] [#]} 20. g4 $1 {[%emt 0:47:03]} f4 {[%emt 0:05:43]} 21. Nd5 {[%emt 0:00:11]} Qd8 {[%emt 0:09:10]} 22. Nf3 {[%emt 0:00:22] Excellent horsemanship.} (22. g5 $1 $14) 22... Be8 $11 {[%emt 0:06:09] Threatens to win with ...Nxd5.} 23. Nxe7+ {[%emt 0:13:44]} Qxe7 {[%emt 0:00:12]} 24. g5 {[%emt 0:00:03] [#]} (24. O-O $15) 24... f5 $1 $17 {[%emt 0:07:25]} 25. gxf6 {[%emt 0:00:08]} Bxf6 {[%emt 0:00:07]} (25... Bxh5 $6 26. fxe7 Rf7 27. Nh4 Rxe7 28. Nf5 $14) (25... Qxf6 26. Qg4 $11) 26. Qh6 {[%emt 0:03:17]} Kh8 {[%emt 0:00:51] ...Rg8 would now be deadly.} 27. Rg1 {[%emt 0:01:03]} Bf7 {[%emt 0:02:32]} (27... Bd7 $17) 28. O-O-O {[%emt 0:02:24][%cal Of3d4]} Rg8 {[%emt 0:00:46]} 29. Nd4 {[%emt 0:02:25]} Bg5 {[%emt 0:26:23]} (29... exd4 $2 {loses.} 30. e5 $18 (30. Qxf4 $2 {perishes.} Bg5 $19) (30. Qxf4 $2 {is the wrong capture.} Bg5 $19)) 30. Nf5 {[%emt 0:00:07][%csl LRd6,LRe7]} Bxh6 {[%emt 0:00:04]} (30... f3+ {feels hotter.} 31. Kb1 Bxh6 32. Rxg8+ Rxg8 33. Nxe7 Rg2) 31. Nxe7 {[%emt 0:00:03]} f3+ {[%emt 0:01:00]} 32. Kb1 {[%emt 0:00:02] [#]} Rxg1 {[%emt 0:00:13]} 33. Rxg1 {[%emt 0:00:02]} Be6 {[%emt 0:01:40][%cal Oa8e8]} 34. Ng6+ $2 {[%emt 0:04:56][%mdl 8192] Now White is beyond hope.} hxg6 $19 {[%emt 0:00:06]} 35. Rxg6 {[%emt 0:00:02] [#]} Bf8 {[%emt 0:00:22]} 36. Rxe6 {[%emt 0:01:16][%mdl 4096] Endgame. KRB-KRB} (36. Rg3 {is a better defense.}) 36... Kg7 {[%emt 0:00:04] Black is clearly winning.} 37. c4 {[%emt 0:00:30]} Kf7 {[%emt 0:00:07]} 38. cxb5 {[%emt 0:00:04]} axb5 {[%emt 0:00:05]} 39. Bxb5 {[%emt 0:01:20] aiming for Bc4.} Kxe6 {[%emt 0:00:04]} 40. Bc4+ {[%emt 0:01:53]} Kd7 {[%emt 0:00:05]} 41. Kc2 {[%emt 0:00:16]} Rc8 {[%emt 0:00:49]} 42. Kd3 {[%emt 0:00:15] [#]} d5 $1 {[%emt 0:00:04]} 43. exd5 {[%emt 0:00:57] [#]} (43. Ba6 Rb8) 43... e4+ $1 {[%emt 0:00:07] Weighted Error Value: White=0.53/Black=0.07 (flawless) .  Loses game:     	White=1     	---        Mistake:       	White=3     	Black=1      Inaccurate:     	White=3     	Black=2      OK:         	White=13    	Black=16     Best:        	White=2     	Black=6      Strong:       	---       	Black=1} 0-1

[Event "US Masters 2024"]
[Site "Charlotte"]
[Date "2024.11.29"]
[Round "3.3"]
[White "Donchenko, Alexander"]
[Black "Yip, Carissa"]
[Result "1-0"]
[ECO "D35"]
[WhiteElo "2617"]
[BlackElo "2432"]
[Annotator "RC"]
[PlyCount "155"]
[EventDate "2024.09.23"]
[EventType "swiss"]
[EventCountry "USA"]
[SourceTitle "playchess.com"]
[Source "ChessBase"]
[SourceQuality "1"]
[TimeControl "5400+30"]

1. d4 {[%emt 0:01:01]} Nf6 {[%emt 0:11:18]} 2. c4 {[%emt 0:00:21]} e6 {[%emt 0:00:03]} 3. Nc3 {[%emt 0:03:46]} d5 {[%emt 0:00:22]} 4. cxd5 {[%emt 0:00:29]} exd5 {[%emt 0:00:33]} 5. Bg5 {[%emt 0:00:15]} Bb4 {[%emt 0:00:05]} 6. e3 {[%emt 0:01:01]} h6 {[%emt 0:00:06]} 7. Bh4 {[%emt 0:00:12]} g5 {[%emt 0:00:05]} 8. Bg3 {[%emt 0:00:05]} h5 {[%emt 0:00:03]} 9. Be5 {[%emt 0:05:13]} Nbd7 {[%emt 0:04:13]} 10. Bxf6 {[%emt 0:00:35]} Qxf6 {[%emt 0:00:26]} 11. Qb3 {[%emt 0:00:49]} Qd6 {[%emt 0:03:02]} 12. h4 {[%emt 0:05:33]} gxh4 {[%emt 0:04:54]} 13. Nge2 {[%emt 0:04:51]} c6 {[%emt 0:07:27]} 14. Rxh4 {[%emt 0:11:27]} Qe7 {[%emt 0:02:35]} 15. g3 {[%emt 0:02:58]} Nf6 {[%emt 0:00:59]} 16. Nf4 {[%emt 0:06:29]} Bg4 {[%emt 0:00:54]} 17. Be2 {[%emt 0:06:09]} O-O-O {[%emt 0:01:06]} 18. O-O-O {[%emt 0:01:12]} Bd6 {[%emt 0:03:23]} 19. Nd3 {[%emt 0:02:50]} Rhg8 {[%emt 0:08:20]} 20. Qc2 {[%emt 0:04:29]} Kb8 {[%emt 0:01:03]} 21. Bxg4 {[%emt 0:04:15]} hxg4 {[%emt 0:05:15]} 22. Kb1 {[%emt 0:00:28]} Ne4 {[%emt 0:03:06]} 23. Nxe4 {[%emt 0:00:25]} dxe4 {[%emt 0:00:11]} 24. Nc1 {[%emt 0:00:19]} Rh8 {[%emt 0:04:42]} 25. Rdh1 {[%emt 0:01:04]} Rxh4 {[%emt 0:00:05]} 26. Rxh4 {[%emt 0:00:06]} Qe6 {[%emt 0:01:38]} 27. Nb3 {[%emt 0:01:49]} Qf5 {[%emt 0:00:59]} 28. a3 {[%emt 0:03:17]} Be7 {[%emt 0:02:51]} 29. Rh2 {[%emt 0:00:39]} Bd6 {[%emt 0:00:05]} 30. Nd2 {[%emt 0:01:32]} Re8 {[%emt 0:00:09]} 31. Qd1 {[%emt 0:00:54]} a6 {[%emt 0:02:39]} 32. Ka1 {[%emt 0:01:06]} Bc7 {[%emt 0:00:37]} 33. Nb3 {[%emt 0:01:06]} Bd6 {[%emt 0:00:24]} 34. Qd2 {[%emt 0:01:02]} Qd5 {[%emt 0:03:42]} 35. Qc2 {[%emt 0:00:37]} Qb5 {[%emt 0:01:48]} 36. Rh6 {[%emt 0:01:57]} Qd5 {[%emt 0:01:50]} 37. Nd2 {[%emt 0:02:36]} Bc7 {[%emt 0:00:50]} 38. Qc5 {[%emt 0:02:35]} Qxc5 {[%emt 0:06:52]} 39. dxc5 {[%emt 0:00:02]} f5 {[%emt 0:00:05]} 40. Nc4 {[%emt 0:01:10]} Rd8 {[%emt 0:00:15]} 41. Rf6 {[%emt 0:08:14]} Rd1+ {[%emt 0:08:16]} 42. Ka2 {[%emt 0:00:02]} Rf1 {[%emt 0:00:05]} 43. Nb6 {[%emt 0:02:33]} Ka7 {[%emt 0:00:04]} 44. Nc8+ {[%emt 0:00:46]} Ka8 {[%emt 0:00:02]} 45. Rf8 {[%emt 0:09:09]} Bb8 {[%emt 0:00:05]} 46. Nb6+ {[%emt 0:00:04]} Ka7 {[%emt 0:00:02]} 47. Nc8+ {[%emt 0:00:04]} Ka8 {[%emt 0:00:03]} 48. Nb6+ {[%emt 0:00:19]} Ka7 {[%emt 0:00:03]} 49. Nd7 {[%emt 0:00:18]} Bc7 {[%emt 0:01:00]} 50. Rxf5 {[%emt 0:03:48]} Bxg3 {[%emt 0:00:13]} 51. Nf6 {[%emt 0:00:17]} Rxf2 {[%emt 0:03:22]} 52. Rxf2 {[%emt 0:00:02]} Bxf2 {[%emt 0:00:05]} 53. Nxg4 {[%emt 0:00:04]} Bh4 {[%emt 0:00:02]} 54. Kb3 {[%emt 0:00:17]} b6 {[%emt 0:03:08]} 55. Kc4 {[%emt 0:00:39]} Be7 {[%emt 0:00:14]} 56. Ne5 {[%emt 0:02:15]} Kb7 {[%emt 0:03:25]} 57. Nd7 {[%emt 0:02:02]} Bg5 {[%emt 0:02:32]} 58. Kd4 {[%emt 0:00:13]} Kc7 {[%emt 0:03:46]} 59. Ne5 {[%emt 0:00:58]} bxc5+ {[%emt 0:00:26]} 60. Kxe4 {[%emt 0:00:02]} Kb6 {[%emt 0:00:56]} 61. Nc4+ {[%emt 0:00:52]} Kb5 {[%emt 0:00:05]} 62. b3 {[%emt 0:00:10]} Be7 {[%emt 0:01:15]} 63. Kd3 {[%emt 0:00:23]} a5 {[%emt 0:00:39]} 64. a4+ {[%emt 0:00:13]} Kb4 {[%emt 0:02:42]} 65. Kc2 {[%emt 0:00:01]} Bf6 {[%emt 0:00:20]} 66. e4 {[%emt 0:00:19]} Bh4 {[%emt 0:00:24]} 67. e5 {[%emt 0:01:16]} Bg5 {[%emt 0:00:36]} 68. e6 {[%emt 0:00:05]} Bh4 {[%emt 0:01:02]} 69. Ne5 {[%emt 0:00:20]} c4 {[%emt 0:00:03]} 70. Nxc6+ {[%emt 0:00:17]} Ka3 {[%emt 0:00:49]} 71. bxc4 {[%emt 0:00:10]} Kxa4 {[%emt 0:00:10]} 72. e7 {[%emt 0:00:19]} Bxe7 {[%emt 0:00:04]} 73. Nxe7 {[%emt 0:00:04]} Kb4 {[%emt 0:00:04]} 74. Kd3 {[%emt 0:00:04]} a4 {[%emt 0:00:10]} 75. Nd5+ {[%emt 0:00:07]} Kb3 {[%emt 0:00:09]} 76. Nc3 {[%emt 0:00:16]} Kb4 {[%emt 0:00:08]} 77. Nxa4 {[%emt 0:00:10]} Kxa4 {[%emt 0:00:07]} 78. Kd4 {[%emt 0:00:05]} 1-0

[Event "US Masters 2024"]
[Site "Charlotte"]
[Date "2024.11.29"]
[Round "3.4"]
[White "Theodorou, Nikolas"]
[Black "Sai Krishna G V"]
[Result "1-0"]
[ECO "E97"]
[WhiteElo "2612"]
[BlackElo "2409"]
[Annotator "TA"]
[PlyCount "123"]
[EventDate "2024.09.23"]
[EventType "swiss"]
[EventCountry "USA"]
[SourceTitle "playchess.com"]
[Source "ChessBase"]
[SourceQuality "1"]
[TimeControl "5400+30"]

{[%evp 26,123,26,33,88,68,107,45,44,54,68,58,61,78,58,98,77,80,89,70,53,0,0,0,0,0,0,0,0,0,0,-26,-30,-76,0,-53,22,0,12,7,8,8,15,9,165,172,213,213,213,213,213,213,335,335,360,361,322,239,241,277,277,295,319,319,319,319,712,660,715,73,947,942,942,947,947,897,849,850,790,538,4610,2739,29966,29967,29969,29971,29975,29977,29983,29984,29984,29985,29986,29987,29987,29988,29988,29989,29989,29990]} 1. d4 {[%emt 0:01:22]} Nf6 {[%emt 0:01:35]} 2. c4 {[%emt 0:00:07]} g6 {[%emt 0:00:12]} 3. Nc3 {[%emt 0:00:06]} Bg7 {[%emt 0:00:02]} 4. e4 {[%emt 0:00:05]} d6 {[%emt 0:00:02]} 5. Be2 {[%emt 0:00:05]} O-O {[%emt 0:00:05]} 6. Nf3 {[%emt 0:00:04]} e5 {[%emt 0:00:04]} 7. O-O {[%emt 0:00:05]} Nc6 {[%emt 0:00:03]} 8. d5 {[%emt 0:00:05]} Ne7 {[%emt 0:00:03]} 9. b4 {[%emt 0:00:03]} Nh5 {[%emt 0:00:03] 9...a5 is the hot move.} 10. Re1 {[%emt 0:00:04]} f5 {[%emt 0:00:04]} 11. a4 {[%emt 0:00:09] E97: King's Indian: Classical Main Line (6...e5 7 0-0 Nc6): 8 Be3 and 8 d5 Ne7, not 9 Ne1.} a5 {[%emt 0:01:46]} 12. bxa5 {[%emt 0:00:37]} Rxa5 {[%emt 0:00:54]} 13. Bd2 {[%emt 0:04:38]} Nf6 {[%emt 0:14:14]} 14. Ng5 {[%emt 0:02:51]} c6 $146 {[%emt 0:09:41]} (14... h6 $14) ({Predecessor:} 14... h6 15. Ne6 Bxe6 16. dxe6 fxe4 17. Qb1 Qa8 18. Nd5 Rxd5 19. cxd5 Nexd5 20. Qb3 Kh7 {0-1 Zhou,J (2546)-Schmakel,S (2416) Philadelphia op 16th 2023 (8)}) 15. Qb3 {[%emt 0:03:56]} Kh8 {[%emt 0:10:27]} 16. Ne6 {[%emt 0:05:09]} ({White should try} 16. Be3 $16 {Hoping for Bb6.} c5 17. Reb1) 16... Bxe6 $14 {[%emt 0:00:15]} 17. dxe6 {[%emt 0:00:03]} Qc8 {[%emt 0:11:43]} 18. Qb4 {[%emt 0:09:48]} Ra6 {[%emt 0:20:54]} 19. c5 {[%emt 0:04:53]} d5 {[%emt 0:00:12]} 20. Bxa6 {[%emt 0:00:10]} bxa6 {[%emt 0:00:14]} 21. exd5 {[%emt 0:02:15]} cxd5 {[%emt 0:04:55]} 22. Rab1 {[%emt 0:00:05]} (22. Rxe5 $2 Nc6 23. Qb3 (23. Qf4 $2 Nh5 $19) 23... Nxe5 $19) 22... d4 {[%emt 0:01:04]} 23. Qb7 {[%emt 0:00:25]} (23. Nd1 $14) 23... dxc3 $11 {[%emt 0:04:03]} 24. Bxc3 {[%emt 0:02:19]} Nfd5 {[%emt 0:02:08]} 25. Bxe5 {[%emt 0:02:49]} Bxe5 {[%emt 0:00:14]} 26. Rxe5 {[%emt 0:00:08]} Qxb7 {[%emt 0:00:35]} 27. Rxb7 {[%emt 0:00:03]} Rc8 {[%emt 0:00:17]} 28. g3 {[%emt 0:02:19]} Rxc5 {[%emt 0:04:09]} 29. Kg2 {[%emt 0:00:12]} (29. Ra7 $11) 29... Rc4 {[%emt 0:01:50]} (29... Rc7 $1 $17 {[%cal Rc7b7]} 30. Rb8+ (30. Rxc7 Nxc7 31. Rc5 Ncd5 $17) 30... Kg7) 30. a5 {[%emt 0:00:47]} (30. Rd7 $11) 30... Rd4 {[%emt 0:00:51]} (30... Rc7 $15 31. Rxc7 Nxc7) 31. Ra7 {[%emt 0:03:21]} (31. Rxd5 {simplifies} Nxd5 32. Rd7 Re4 33. Rxd5 Rxe6 34. h4) 31... Nc6 {[%emt 0:13:21]} 32. Ra8+ {[%emt 0:03:49]} (32. Rxa6 $2 {too greedy.} Nxe5 33. Rb6 Kg7 $19) 32... Kg7 {[%emt 0:00:00]} 33. Re1 {[%emt 0:00:10]} Ra4 {[%emt 0:00:00]} 34. Rxa6 {[%emt 0:00:38]} Nde7 $2 {[%emt 0:00:00]} (34... Nce7 $1 $11) 35. Rxc6 $1 $18 {[%emt 0:03:04]} Nxc6 {[%emt 0:00:00]} 36. e7 {[%emt 0:00:05]} Nxe7 {[%emt 0:00:00]} 37. Rxe7+ {[%emt 0:00:05]} Kf6 {[%emt 0:00:00]} 38. Ra7 {[%emt 0:00:09]} (38. Rxh7 Rxa5 39. Rc7 Ra2 $14) 38... h5 {[%emt 0:00:00]} (38... Ra3 $142 39. h4 (39. Rxh7 Rxa5 40. h4 Rb5 $11) 39... Ke6) 39. Ra8 $18 {[%emt 0:05:38]} h4 {[%emt 0:00:00]} 40. a6 {[%emt 0:03:42]} hxg3 {[%emt 0:00:00]} 41. hxg3 {[%emt 0:00:40]} Kg7 {[%emt 0:00:00]} 42. Kf3 {[%emt 0:02:22]} Kh7 {[%emt 0:00:00]} 43. Ke3 {[%emt 0:01:36]} Kg7 {[%emt 0:00:00]} 44. Kd3 {[%emt 0:02:54]} Ra2 {[%emt 0:00:00]} 45. f3 {[%emt 0:16:03]} Ra3+ $2 {[%emt 0:00:00]} (45... Ra4 46. Kc2 Kh6) 46. Kc4 $18 {[%emt 0:01:13]} Rxf3 {[%emt 0:00:59]} 47. Kb4 $2 {[%emt 0:04:50]} (47. Rc8 $18) 47... Rf1 $2 {[%emt 0:01:33][%mdl 8192]} (47... Rf2 $16) 48. Rc8 $18 {[%emt 0:00:14]} Ra1 {[%emt 0:01:38]} 49. Kb5 $1 {[%emt 0:00:05]} Rb1+ {[%emt 0:03:10]} 50. Kc6 {[%emt 0:01:02]} Rc1+ {[%emt 0:00:03]} 51. Kb7 {[%emt 0:00:04]} Rb1+ {[%emt 0:00:05]} 52. Ka8 $1 {[%emt 0:00:15]} Rb3 {[%emt 0:01:01]} 53. a7 {[%emt 0:02:05]} g5 {[%emt 0:00:10]} 54. Rb8 {[%emt 0:08:30]} Rxg3 {[%emt 0:00:06]} 55. Rb7+ {[%emt 0:00:05]} Kg6 {[%emt 0:02:43]} 56. Rb6+ $1 {[%emt 0:00:17]} Kh5 {[%emt 0:00:12] [#]} 57. Kb7 $1 {[%emt 0:00:21]} Ra3 {[%emt 0:00:03] [#]} 58. Ra6 $1 {[%emt 0:00:14]} Rb3+ {[%emt 0:00:02]} 59. Kc7 {[%emt 0:00:22]} Rc3+ {[%emt 0:00:04]} 60. Kd7 {[%emt 0:00:12]} Rd3+ {[%emt 0:00:04]} 61. Ke7 {[%emt 0:00:06]} Re3+ {[%emt 0:00:04]} 62. Kf7 {[%emt 0:00:08]} 1-0

[Event "US Masters 2024"]
[Site "Charlotte"]
[Date "2024.11.29"]
[Round "3.5"]
[White "Bilych, Oleksii"]
[Black "Bortnyk, Olexandr"]
[Result "1/2-1/2"]
[ECO "B12"]
[WhiteElo "2429"]
[BlackElo "2603"]
[Annotator "TA"]
[PlyCount "65"]
[EventDate "2024.09.23"]
[EventType "swiss"]
[EventCountry "USA"]
[SourceTitle "playchess.com"]
[Source "ChessBase"]
[SourceQuality "1"]
[TimeControl "5400+30"]

{[%evp 9,65,54,56,59,55,35,59,40,56,65,49,10,19,-5,0,0,34,51,32,36,43,35,68,18,22,18,17,16,15,0,6,7,25,0,0,0,7,10,10,27,18,27,48,0,3,0,0,0,0,0,0,0,143,116,145,0,139,0]} 1. e4 {[%emt 0:00:02]} c6 {[%emt 0:00:40]} 2. d4 {[%emt 0:00:09]} d6 {[%emt 0:00:35]} 3. Nc3 {[%emt 0:01:24]} Qc7 {[%emt 0:01:13]} 4. f4 {[%emt 0:00:35]} g6 {[%emt 0:01:32]} 5. Be3 {[%emt 0:01:24]} Bg7 {[%emt 0:00:24]} 6. Qd2 {[%emt 0:04:16]} b5 {[%emt 0:04:35]} 7. Bd3 {[%emt 0:00:25]} Nd7 {[%emt 0:00:43]} 8. Nf3 {[%emt 0:00:22] White is slightly better.} Nb6 {[%emt 0:00:36]} 9. O-O {[%emt 0:03:37]} Nf6 {[%emt 0:00:59]} 10. e5 {[%emt 0:06:50]} Ng4 {[%emt 0:02:45]} 11. h3 {[%emt 0:00:49] [#] Hoping for exd6.} Nxe3 {[%emt 0:00:16]} 12. Qxe3 {[%emt 0:00:06]} dxe5 {[%emt 0:10:50]} 13. fxe5 {[%emt 0:01:01]} O-O {[%emt 0:00:15]} 14. a4 {[%emt 0:02:29]} b4 {[%emt 0:05:00]} 15. Ne4 {[%emt 0:00:05]} Nd5 {[%emt 0:00:25]} 16. Qd2 {[%emt 0:00:10] White is more active.} (16. Qe1 $14) 16... f6 $11 {[%emt 0:01:23][%cal Rf6e5]} 17. exf6 {[%emt 0:00:28]} exf6 {[%emt 0:00:06]} 18. Rae1 {[%emt 0:01:33]} a5 {[%emt 0:01:33]} 19. Bc4 {[%emt 0:02:54]} Bf5 {[%emt 0:02:12]} 20. Nc5 {[%emt 0:04:48]} Rae8 {[%emt 0:00:38]} 21. Rxe8 {[%emt 0:03:19]} Rxe8 {[%emt 0:00:08]} 22. Re1 {[%emt 0:00:01]} Re7 {[%emt 0:03:10]} 23. Rxe7 {[%emt 0:04:37]} Qxe7 {[%emt 0:00:16]} 24. c3 {[%emt 0:00:01]} bxc3 {[%emt 0:00:25]} 25. Qxc3 {[%emt 0:00:10][%cal Og1h1]} Bh6 {[%emt 0:00:58]} 26. Bxd5+ {[%emt 0:02:57]} (26. Qxa5 $2 {perishes.} Qe3+ 27. Kh1 (27. Kh2 $2 Bf4+ 28. Kh1 Qc1+ 29. Qe1 Qxc4 $19) 27... Qc1+ 28. Qe1 Qxc4 $19) 26... cxd5 {[%emt 0:00:02]} 27. Qxa5 {[%emt 0:00:06] Black must now prevent Kf1.} Qe3+ {[%emt 0:07:08]} 28. Kh1 {[%emt 0:01:13] And now Qe1 would win.} Qc1+ {[%emt 0:01:54]} 29. Qe1 {[%emt 0:00:05] aiming for Qxc1.} Qxb2 {[%emt 0:00:04]} 30. Qe8+ {[%emt 0:03:20]} Kg7 {[%emt 0:03:20]} (30... Bf8 $11 {keeps the balance.}) 31. Qe7+ {[%emt 0:00:10]} Kg8 {[%emt 0:00:06]} 32. Qe8+ {[%emt 0:02:24]} ({Don't play} 32. Qxf6 $6 Qc1+ 33. Ng1 Be3 34. Qd8+ Kg7 35. Qe7+ Kg8 36. Qe8+ Kg7 37. Qe7+ Kh6 38. Qh4+ Kg7 39. Qe7+ $11) 32... Kg7 {[%emt 0:00:04] [#]} 33. Qe7+ {[%emt 0:00:04] Weighted Error Value: White=0.21 (precise) /Black=0.14 (very precise) .  Mistake:       	White=2     	Black=1      Inaccurate:     	White=2     	Black=2      OK:         	White=8     	Black=14     Best:        	White=1     	Black=3} (33. a5 $1 $16 Bf4 34. Qe7+ Kg8 35. a6 (35. Qxf6 Qc1+ 36. Ng1 Be3 $11) 35... Qc1+ 36. Qe1 Qxe1+ 37. Nxe1) 1/2-1/2